fUST/lending_fUST_20240124
["ID","MTS","AMOUNT","RATE_DAILY","PERIOD"]
[312606753,1706067060303,-750.71,0.00042465,31]
[312606754,1706067060312,-1030.98,0.00042465,31]
[312606755,1706067060322,-200.0,0.000425,120]
[312606756,1706067060331,-163.1461608,0.00042566,30]
[312606757,1706067060341,-160.0,0.00042713,7]
[312606758,1706067060350,-678.87,0.00042739,31]
[312606759,1706067060359,-500.0,0.00042739,31]
[312606760,1706067060369,-500.0,0.00042739,31]
[312606761,1706067060378,-558.8,0.00042739,31]
[312606762,1706067060388,-682.71,0.00042739,31]
[312606763,1706067060397,-500.0,0.00042739,31]
[312606764,1706067060406,-802.46,0.00042739,31]
[312606765,1706067060416,-500.0,0.00042739,2]
[312606766,1706067060425,-500.0,0.00042739,31]
[312606767,1706067060434,-503.51,0.00042739,31]
[312606768,1706067060443,-670.06,0.00042739,31]
[312606769,1706067060452,-500.0,0.00042739,31]
[312606770,1706067060462,-500.0,0.00042739,31]
[312606771,1706067060471,-527.65877387,0.00042739,31]
[312606772,1706067060480,-500.0,0.00042739,31]
[312606773,1706067060490,-1168.36,0.00042739,31]
[312606774,1706067060499,-500.0,0.00042739,31]
[312606775,1706067060508,-580.87803457,0.00042739,31]
[312606776,1706067060517,-565.25,0.00042739,31]
[312606777,1706067060527,-491.49841506,0.00042739,31]
[312606778,1706067060536,-525.59,0.00042739,31]
[312606779,1706067060545,-500.0,0.00042739,31]
[312606780,1706067060554,-1004.25,0.00042739,2]
[312606781,1706067060563,-500.0,0.00042739,20]
[312606782,1706067060572,-809.15,0.00042739,31]
[312606783,1706067060581,-743.08,0.00042739,31]
[312606784,1706067060590,-663.9,0.00042739,31]
[312606785,1706067060599,-555.1,0.00042739,31]
[312606786,1706067060608,-500.0,0.00042739,31]
[312606787,1706067060618,-641.94,0.00042739,31]
[312606788,1706067060628,-507.31,0.00042739,31]
[312606789,1706067060638,-546.43,0.00042739,31]
[312606790,1706067060648,-500.0,0.00042739,31]
[312606791,1706067060657,-567.46,0.00042739,31]
[312606792,1706067060667,-2049.46,0.00042739,31]
[312606793,1706067060677,-500.0,0.00042739,31]
[312606794,1706067060686,-668.98,0.00042739,31]
[312606795,1706067060695,-1180.38,0.00042739,31]
[312606796,1706067060704,-500.0,0.00042739,31]
[312606797,1706067060713,-778.04,0.00042739,31]
[312606798,1706067060722,-2732.86,0.00042739,31]
[312606799,1706067060731,-1021.45,0.00042739,31]
[312606800,1706067060741,-500.0,0.00042739,31]
[312606801,1706067060750,-1274.62,0.00042739,31]
[312606802,1706067060759,-522.52,0.00042739,31]
[312606803,1706067060768,-500.0,0.00042739,31]
[312606804,1706067060777,-749.04,0.00042739,31]
[312606805,1706067060786,-3177.6,0.00042739,31]
[312606806,1706067060795,-500.0,0.00042739,31]
[312606807,1706067060805,-2432.01,0.00042739,31]
[312606808,1706067060814,-1430.82,0.00042739,31]
[312606809,1706067060823,-2099.51,0.00042739,31]
[312606810,1706067060832,-500.0,0.00042739,31]
[312606811,1706067060841,-1047.83,0.00042739,31]
[312606812,1706067060850,-2449.99,0.00042739,31]
[312606813,1706067060860,-7512.82,0.00042739,31]
[312606814,1706067060869,-18915.05,0.00042739,14]
[312606815,1706067060878,-846.31,0.00042739,31]
[312606816,1706067060887,-510.06,0.00042739,31]
[312606817,1706067060896,-1013.0,0.00042739,31]
[312606818,1706067060904,-562.25,0.00042739,31]
[312606819,1706067060914,-1946.07,0.00042739,31]
[312606820,1706067060923,-524.38,0.00042739,31]
[312606821,1706067060931,-421.67712071,0.00042739,31]
[312606822,1706067060940,-534.42,0.00042739,31]
[312606823,1706067060949,-1252.12,0.00042739,31]
[312606824,1706067060958,-500.0,0.00042739,31]
[312606825,1706067060968,-500.0,0.00042739,31]
[312606826,1706067060977,-666.87,0.00042739,31]
[312606827,1706067060986,-649.53,0.00042739,31]
[312606828,1706067060995,-1237.52,0.00042739,31]
[312606829,1706067061004,-500.0,0.00042739,31]
[312606830,1706067061013,-547.43,0.00042739,31]
[312606831,1706067061023,-500.0,0.00042739,31]
[312606832,1706067061032,-500.0,0.00042739,31]
[312606833,1706067061041,-1006.41,0.00042739,31]
[312606834,1706067061051,-2637.76,0.00042739,31]
[312606835,1706067061061,-2585.0,0.00042739,31]
[312606836,1706067061070,-500.0,0.00042739,31]
[312606837,1706067061084,-750.71,0.00042739,31]
[312606838,1706067061094,-1030.98,0.00042739,31]
[312606839,1706067061103,-163.1461608,0.00042825,30]
[312606840,1706067061114,-163.1461608,0.00042873,30]
[312606841,1706067061123,-9947.02864325,0.00042998,4]
[312606842,1706067061133,-80000.68844108,0.00042999,5]
[312606843,1706067061143,-178.72553663,0.00042999,4]
[312606844,1706067061152,-242812.6287902,0.00043,3]
[312606845,1706067061162,-500000.0,0.00043,4]
[312606846,1706067061172,-275055.90896301,0.00043,5]
[312606847,1706067061345,-5841.13857856,0.00043,5]
[312606865,1706068032106,-449.39938875,0.0002209,2]
[312606866,1706068049087,-339.34874631,0.0002209,2]
[312606867,1706068131409,424.4,0.00039725,120]
[312607055,1706068246200,-29.92944382,0.0002209,2]
[312607056,1706068246210,-189.3589828,0.00022091,2]
[312607057,1706068246219,-679.72359041,0.00023367,2]
[312607058,1706068246229,-10000.35700595,0.00031434,4]
[312607059,1706068246238,-6348.03686493,0.00031435,3]
[312607060,1706068246247,-5038.6938286,0.00031438,2]
[312607125,1706068321345,154.87609912,0.0002,2]
[312607126,1706068321378,688.12390088,0.0002,2]
[312607127,1706068447641,714.86737854,0.00025,10]
[312607131,1706069042477,761.03806711,0.00023365,5]
[312607134,1706069237105,-154.84515485,0.00023013,2]
[312607138,1706069374078,-154.89238007,0.00022247,2]
[312607183,1706069432248,-151.36378773,0.00021472,2]
[312607185,1706069432258,-154.86062544,0.00022246,2]
[312607187,1706069432268,-154.86062544,0.00022247,2]
[312607189,1706069432277,-1114.82223446,0.00022247,2]
[312607191,1706069432287,-1109.98253014,0.00022247,2]
[312607193,1706069432296,-154.86062544,0.00022247,2]
[312607195,1706069432305,-818.67757888,0.00022248,2]
[312607197,1706069432314,-166.666666,0.00022249,2]
[312607199,1706069432324,-166.666666,0.00022855,2]
[312607201,1706069432333,-8968.69997514,0.00023012,2]
[312607244,1706069438312,-620.84959992,0.00022247,2]
[312607246,1706069438322,-154.86062544,0.00022247,2]
[312607248,1706069438331,-1428.79351891,0.00022247,2]
[312607250,1706069438343,-143.30916665,0.00022247,2]
[312607252,1706069438352,-154.86062544,0.00022247,2]
[312607254,1706069438361,-154.86062544,0.00022247,2]
[312607256,1706069438370,-1031.65703081,0.00023012,2]
[312607258,1706069438379,-462.08763715,0.00023013,2]
[312607260,1706069438389,-548.10984714,0.00023013,2]
[312607262,1706069438397,-7475.8337283,0.00023365,2]
[312607264,1706069438411,-380.60569823,0.00023365,2]
[312607373,1706069441475,-182.95165497,0.00022247,2]
[312607374,1706069441484,-2357.34588743,0.00023365,2]
[312607375,1706069441494,-2506.81390702,0.00023365,2]
[312607376,1706069441503,-211.66851402,0.00023367,2]
[312607377,1706069441512,-517.10467479,0.00023367,2]
[312607378,1706069441522,-166.666666,0.00023462,2]
[312607379,1706069441532,-166.666666,0.00024068,2]
[312607380,1706069441541,-166.666666,0.00024675,2]
[312607381,1706069441550,-7847.45717964,0.00024777,2]
[312607417,1706069446469,-1109.98253014,0.00022247,2]
[312607418,1706069446478,-6559.63838805,0.00024777,2]
[312607423,1706069553082,0.02859396,0.00039725,120]
[312607425,1706069859296,4994.5,0.0003,120]
[312607427,1706070378470,-1579.8258689,0.00021596,2]
[312607428,1706070378491,-10000.35700595,0.00021599,2]
[312607429,1706070378512,-539.510215,0.00021601,2]
[312607430,1706070378533,-199.0458651,0.00021637,2]
[312607431,1706070445550,1310.0855713,0.00021637,2]
[312607432,1706070450000,154.86062544,0.00021637,2]
[312607433,1706070453193,548.10984714,0.00021637,2]
[312607434,1706070463108,620.84959992,0.00021637,2]
[312607435,1706070463540,1310.0855713,0.00021637,2]
[312607436,1706070465533,343.19914178,0.00021637,2]
[312607437,1706070466461,850.57862657,0.00021917,2]
[312607438,1706070467805,233.16294689,0.00021637,2]
[312607439,1706070467991,154.86062544,0.00021637,2]
[312607440,1706070469191,548.10984714,0.00021637,2]
[312607441,1706070471692,154.86062544,0.00021637,2]
[312607442,1706070471959,154.86062544,0.00021637,2]
[312607443,1706070481134,620.84959992,0.00021637,2]
[312607444,1706070481536,343.76774269,0.00021637,2]
[312607445,1706070483813,361.53185626,0.00021637,2]
[312607446,1706070485345,548.10984714,0.00021637,2]
[312607447,1706070485543,682.55458265,0.00021637,2]
[312607448,1706070485994,227.71412701,0.00021637,2]
[312607449,1706070487354,678.88445844,0.00021917,2]
[312607450,1706070489966,156.45828922,0.00021637,2]
[312607451,1706070491680,154.86062544,0.00021637,2]
[312607452,1706070495175,238.54896648,0.00021637,2]
[312607453,1706070501266,483.48154199,0.00021637,2]
[312607454,1706070504561,154.59848144,0.00021529,2]
[312607455,1706070505539,682.55458265,0.00021637,2]
[312607456,1706070507706,192.10952254,0.00021637,2]
[312607457,1706070527666,682.55458265,0.00021637,2]
[312607459,1706070549570,682.55458265,0.00021637,2]
[312607460,1706070567574,682.55458265,0.00021637,2]
[312607461,1706070583579,682.55458265,0.00021637,2]
[312607462,1706070601574,682.55458265,0.00021637,2]
[312607463,1706070617575,682.55458265,0.00021637,2]
[312607502,1706070632498,-177.040124,0.00021918,2]
[312607504,1706070632507,-5386.35326565,0.00021933,2]
[312607506,1706070632519,-1409.3477455,0.00021933,2]
[312607527,1706070635581,682.55458265,0.00021637,2]
[312607583,1706070639239,-4569.57367582,0.00021933,2]
[312607585,1706070639249,-5633.27584706,0.00021934,2]
[312607625,1706070659589,682.55458265,0.00021637,2]
[312607626,1706070681586,548.72367167,0.00021637,2]
[312607627,1706070694654,154.86062544,0.00019473,2]
[312607629,1706070725840,249.95995018,0.00021637,2]
[312607630,1706070732681,154.86062544,0.00021637,2]
[312607631,1706070734426,1379.81175745,0.00021637,2]
[312607637,1706070882389,266.23029239,0.00019834,2]
[312607638,1706070924357,233.16294689,0.00019834,2]
[312607639,1706070925977,3219.03029015,0.00019834,2]
[312607640,1706070926015,154.86062544,0.00019834,2]
[312607641,1706070926063,535.31907087,0.00019834,2]
[312607642,1706070926099,182.95165497,0.00019834,2]
[312607643,1706070927020,1114.82223446,0.00019834,2]
[312607644,1706070927195,154.86062544,0.00019834,2]
[312607645,1706070928552,154.86062544,0.00019834,2]
[312607646,1706070930486,154.86062544,0.00019834,2]
[312607647,1706070931795,1109.98253014,0.00019834,2]
[312607648,1706070934809,154.86062544,0.00019834,2]
[312607649,1706070938001,194.5849567,0.00019834,2]
[312607650,1706070940025,3219.03029015,0.00019834,2]
[312607651,1706070940548,233.16294689,0.00019834,2]
[312607652,1706070942060,535.31907087,0.00019834,2]
[312607653,1706070942095,182.95165497,0.00019834,2]
[312607654,1706070945032,471.87749621,0.00019834,2]
[312607655,1706070945209,155.95609452,0.00019834,2]
[312607656,1706070945811,1099.70853057,0.00019834,2]
[312607657,1706070946565,154.86062544,0.00019834,2]
[312607658,1706070948494,156.60731066,0.00019834,2]
[312607659,1706070956814,155.83096295,0.00019834,2]
[312607660,1706070958011,1684.20867051,0.00019834,2]
[312607661,1706070958079,182.95165497,0.00019834,2]
[312607662,1706070958371,311.96173212,0.00019834,2]
[312607663,1706070964061,535.31907087,0.00019834,2]
[312607664,1706070968566,154.86062544,0.00019834,2]
[312607665,1706070976081,182.95165497,0.00019834,2]
[312607666,1706070986564,155.7837865,0.00019834,2]
[312607667,1706070989875,534.81456972,0.00019834,2]
[312607668,1706070994085,182.95165497,0.00019834,2]
[312607669,1706071016079,182.95165497,0.00019834,2]
[312607670,1706071034086,182.95165497,0.00019834,2]
[312607671,1706071052086,182.95165497,0.00019834,2]
[312607672,1706071074080,259.18003306,0.00019834,2]
[312607673,1706071112422,1000.0,0.00023288,7]
[312607675,1706071165481,1000.0,0.00023288,5]
[312607676,1706071171255,761.03806711,0.00020764,5]
[312607677,1706071483836,177.48686159,0.00019834,2]
[312607681,1706071630101,-172.990764,0.00020431,2]
[312607682,1706071640142,-262.41441764,0.0002043,2]
[312607683,1706071640164,-186.98497111,0.00020431,2]
[312607684,1706071707110,172.990764,0.00019482,2]
[312607685,1706071745100,-5210.1860001,0.00020423,2]
[312607686,1706071745121,-818.67757888,0.00020424,2]
[312607687,1706071745142,-329.63381135,0.00020424,2]
[312607688,1706071745162,-237.74153663,0.00020424,2]
[312607689,1706071745183,-978.2579722,0.00020425,2]
[312607690,1706071745202,-3744.75197732,0.00020431,2]
[312607691,1706071745223,-269.755107,0.00020438,2]
[312607692,1706071745244,-13407.66685493,0.00020633,2]
[312607693,1706071749093,-1435.40116942,0.00020633,2]
[312607694,1706071767060,-1328.02660032,0.00020633,2]
[312607695,1706071772089,-8728.90537533,0.00020633,2]
[312607696,1706071772110,-524.5023181,0.00020704,2]
[312607697,1706071772130,-250.0,0.00020867,2]
[312607698,1706071772151,-638.89080957,0.00021637,2]
[312607699,1706071772171,-206.16535719,0.00021637,2]
[312607700,1706071772319,-157.08029083,0.00021637,2]
[312607701,1706071772341,-177.040124,0.00021918,2]
[312607702,1706071772362,-155.23478689,0.00022247,2]
[312607703,1706071772382,-156.30241917,0.00022247,2]
[312607704,1706071772402,-191.40104537,0.00022247,2]
[312607705,1706071772424,-156.65970138,0.00022247,2]
[312607706,1706071772444,-290.14513525,0.00022247,2]
[312607707,1706071772464,-1000.113,0.00023288,3]
[312607708,1706071772487,-900.81,0.00023357,3]
[312607709,1706071772510,-750.68,0.00023357,3]
[312607710,1706071772537,-169.9308976,0.00023367,2]
[312607711,1706071772559,-206.11067172,0.00023367,2]
[312607712,1706071772583,-16208.88476028,0.00023367,2]
[312607782,1706071838715,-10202.84952288,0.00023367,2]
[312607822,1706071842017,-37574.05384479,0.00023367,2]
[312607823,1706071842026,-2887.35868927,0.00023367,2]
[312607824,1706071842035,-151.0,0.00023367,2]
[312607825,1706071842045,-279.707493,0.00023367,2]
[312607826,1706071842055,-151.0,0.00023367,2]
[312607827,1706071842064,-789.881477,0.00023367,2]
[312607828,1706071842073,-789.881477,0.00023367,2]
[312607829,1706071842083,-177.040124,0.00024482,2]
[312607830,1706071842093,-151.0,0.00024777,2]
[312607831,1706071842102,-231.125262,0.00024777,2]
[312607832,1706071842111,-789.881477,0.00024777,2]
[312607833,1706071842120,-789.881477,0.00024777,2]
[312607834,1706071842130,-789.881477,0.00024777,2]
[312607835,1706071842139,-789.881477,0.00024777,2]
[312607836,1706071842149,-7475.8337283,0.00024777,2]
[312607837,1706071842158,-177.48686159,0.00024834,2]
[312607838,1706071842167,-155.64296739,0.00025,2]
[312607839,1706071842177,-155.96848938,0.00025,2]
[312607840,1706071842186,-155.46087266,0.00025,2]
[312607841,1706071842195,-151.0,0.00025,2]
[312607842,1706071842204,-625.56,0.0002509,3]
[312607843,1706071842214,-789.881477,0.00025099,2]
[312607844,1706071842224,-789.881477,0.00025099,2]
[312607845,1706071842233,-789.881477,0.000251,2]
[312607846,1706071842244,-789.881477,0.000251,2]
[312607847,1706071842253,-409.04175393,0.000251,2]
[312607848,1706071842262,-409.04175393,0.000251,2]
[312607849,1706071842272,-409.04175393,0.000251,2]
[312607850,1706071842281,-409.04175393,0.000251,2]
[312607851,1706071842290,-409.04175393,0.000251,2]
[312607852,1706071842299,-409.04175393,0.000251,2]
[312607853,1706071842308,-409.04175393,0.000251,2]
[312607854,1706071842317,-409.04175393,0.000251,2]
[312607855,1706071842326,-409.04175393,0.000251,2]
[312607856,1706071842335,-409.04175,0.000251,2]
[312607857,1706071842344,-183.64233199,0.00026,7]
[312607858,1706071842356,-779.14100403,0.00026998,5]
[312607859,1706071842365,-685.6096693,0.00026998,2]
[312607860,1706071842374,-351.52136299,0.000274,2]
[312607861,1706071842383,-14208.94828582,0.000275,2]
[312607891,1706072048832,5231.86796849,0.000125,2]
[312607892,1706072048858,882.9304567,0.000125,2]
[312607894,1706072072213,535.31907087,0.000125,2]
[312607895,1706072086208,587.98733179,0.000125,2]
[312607927,1706072840071,-154.87609912,0.00022723,2]
[312607928,1706072850069,-154.84515485,0.00022624,2]
[312607929,1706072850172,200.0,0.00024995,7]
[312607956,1706073031809,-903.88612378,0.00022616,2]
[312607959,1706073031818,-555.52588132,0.00022617,2]
[312607962,1706073031828,-260.95376915,0.00022618,2]
[312607964,1706073031837,-1191.03378937,0.00022618,2]
[312608076,1706073038693,-8809.32321658,0.00022618,2]
[312608078,1706073038703,-0.83229639,0.00022624,2]
[312608079,1706073038712,-156.07097879,0.00022724,2]
[312608080,1706073038721,-1236.62303112,0.00022725,2]
[312608126,1706073045997,-818.67757888,0.00022617,2]
[312608128,1706073046008,-23663.37696888,0.00022725,2]
[312608130,1706073046017,-256.95545935,0.00023071,2]
[312608132,1706073046029,-12.79964765,0.00023071,2]
[312608134,1706073046037,-306.68,0.00023357,3]
[312608136,1706073046046,-946.12825235,0.00023367,2]
[312608162,1706074012100,-150.0,0.00020625,2]
[312608163,1706074012122,-4.9204354,0.00023342,2]
[312608272,1706074241081,-469.45799078,0.00023338,2]
[312608282,1706074243892,-1671.1914737,0.00023338,2]
[312608283,1706074243901,-300.0,0.00023342,2]
[312608284,1706074243910,-15224.22613047,0.00023366,2]
[312608285,1706074243919,-24900.0,0.00023367,2]
[312608286,1706074243929,-19500.34405545,0.00023367,2]
[312608287,1706074243939,-873.80591912,0.00023367,2]
[312608288,1706074243948,-7093.13741523,0.00023414,2]
[312608289,1706074243960,-3923.415606,0.00023462,2]
[312608290,1706074243971,-3923.415606,0.00023462,2]
[312608291,1706074243980,-178.591799,0.00023462,2]
[312608292,1706074243989,-178.591799,0.00023462,2]
[312608293,1706074243998,-178.591799,0.00023462,2]
[312608294,1706074244008,-178.591799,0.00023462,2]
[312608295,1706074244018,-3367.72954767,0.00023462,2]
[312608296,1706074244026,-5000.0,0.00023462,2]
[312608297,1706074244036,-200.0,0.00025675,7]
[312608298,1706074244046,-151.0,0.00025909,2]
[312608299,1706074244055,-4724.75315233,0.00025909,2]
[312608300,1706074244064,-151.0,0.0002591,2]
[312608301,1706074244073,-151.0,0.0002591,2]
[312608302,1706074244083,-3923.415606,0.0002591,2]
[312608303,1706074244091,-3923.415606,0.0002591,2]
[312608304,1706074244101,-178.591799,0.0002591,2]
[312608305,1706074244110,-178.591799,0.0002591,2]
[312608306,1706074244119,-284.76275077,0.00026123,5]
[312608307,1706074244128,-153.7239814,0.00026678,2]
[312608308,1706074244138,-199.2396578,0.00026678,2]
[312608309,1706074244147,-306.0,0.00027397,2]
[312608310,1706074244157,-151.0,0.00027497,2]
[312608311,1706074244166,-3923.415606,0.00027497,2]
[312608312,1706074244176,-3923.415606,0.00027497,2]
[312608313,1706074244186,-178.591799,0.00027497,2]
[312608314,1706074244196,-178.591799,0.00027497,2]
[312608315,1706074244205,-4757.78873621,0.00027497,2]
[312608316,1706074244215,-2104.07287401,0.00027498,2]
[312608317,1706074244224,-416.13001266,0.00027498,2]
[312608318,1706074244234,-263.65602113,0.00027498,2]
[312608319,1706074244244,-260.60715868,0.00027498,2]
[312608320,1706074244253,-430.41289031,0.00027498,2]
[312608321,1706074244263,-155.69739516,0.00027498,2]
[312608322,1706074244276,-167.00483785,0.00027498,2]
[312608323,1706074244287,-151.0,0.00027498,2]
[312608324,1706074244301,-9109.84011411,0.000275,2]
[312608325,1706074244317,-518.61,0.000275,2]
[312608326,1706074244328,-1510.26,0.000275,2]
[312608327,1706074244339,-861.211647,0.000275,2]
[312608328,1706074244352,-1335.69975529,0.000275,2]
[312608335,1706074246151,-282.82346354,0.00023337,2]
[312608345,1706075007905,106504.39234221,0.00018,2]
[312608346,1706075240105,-262.41441764,0.00022325,2]
[312608347,1706075240126,-186.98497111,0.00022326,2]
[312608383,1706075432318,-1427.09964299,0.00022316,2]
[312608385,1706075432328,-237.74153663,0.00022317,2]
[312608386,1706075432337,-15109.76406738,0.00022318,2]
[312608414,1706075438289,-3969.42099078,0.00022315,2]
[312608415,1706075438299,-114.46206309,0.00022318,2]
[312608416,1706075438308,-300.0,0.00022326,2]
[312608417,1706075438318,-5818.96646901,0.00022329,2]
[312608419,1706075441313,-4181.39053694,0.00022329,2]
[312608420,1706075441323,-3431.45755406,0.0002233,2]
[312608421,1706075441332,-2100.72264181,0.0002278,2]
[312608423,1706075446374,-4778.43473117,0.0002278,2]
[312608433,1706076432106,-199.30151643,0.00021917,2]
[312608434,1706076432126,-302.00997705,0.00021918,2]
[312608435,1706076432148,-1088.93483079,0.00021918,2]
[312608484,1706076638731,-1189.24970249,0.00021458,2]
[312608485,1706076638740,-237.74153663,0.00021459,2]
[312608486,1706076638749,-8775.85828376,0.0002146,2]
[312608487,1706076638761,-3073.83204926,0.0002146,2]
[312608488,1706076638772,-4551.47340756,0.0002146,2]
[312608489,1706076638783,-8498.83625942,0.0002146,2]
[312608490,1706076638793,-1484.61502997,0.00021912,2]
[312608491,1706076638802,-182.95165497,0.00021918,2]
[312608492,1706076638811,-1294.69422174,0.00021918,2]
[312608508,1706076641402,-531.80906263,0.00021918,2]
[312608509,1706076641412,-300.0,0.00021918,2]
[312608510,1706076641421,-5210.1860001,0.00022323,2]
[312608511,1706076641431,-918.615662,0.00022324,2]
[312608512,1706076641440,-3039.91603511,0.00023648,2]
[312608513,1706076641450,-101.10863828,0.00023703,2]
[312608514,1706076641462,-4081.45258001,0.00023703,2]
[312608531,1706076646559,-350.98489009,0.00023703,2]
[312608532,1706076646571,-466.45389162,0.00023703,2]
[312608533,1706076646580,-1007.92060562,0.00023761,2]
[312608534,1706076646615,-867.82603526,0.00023761,2]
[312608577,1706077616101,-154.9204354,0.00021602,2]
[312608617,1706077838660,-464.6786596,0.00021602,2]
[312608619,1706077838670,-300.0,0.00021602,2]
[312608620,1706077838679,-150.0,0.00021603,2]
[312608621,1706077838688,-155.67745124,0.00021816,2]
[312608622,1706077838698,-2031.25999981,0.00021916,2]
[312608647,1706077841628,-3178.92600029,0.00021916,2]
[312608648,1706077841638,-198.15022122,0.00021918,2]
[312608650,1706077841648,-1631.1744727,0.00021918,2]
[312608651,1706077841658,-1271.79724658,0.00023761,2]
[312608652,1706077841667,-2988.18586873,0.00023822,2]
[312608653,1706077841676,-5000.0,0.00023861,2]
[312608654,1706077841686,-177.04934367,0.00023861,2]
[312608655,1706077841696,-5000.0,0.00023861,2]
[312608656,1706077841715,-3182.88879044,0.00024285,2]
[312608700,1706077846861,-451.25,0.00024285,2]
[312608783,1706078840105,-449.39938875,0.00023822,2]
[312608807,1706079031988,-426.10577832,0.00023812,2]
[312608809,1706079031997,-1567.04422168,0.00023812,2]
[312608963,1706079037870,-434.64116267,0.00023812,2]
[312608964,1706079037883,-619.599095,0.00023813,2]
[312608965,1706079037894,-262.41441764,0.00023814,2]
[312608966,1706079037904,-300.0,0.00023822,2]
[312608967,1706079037913,-798.10905042,0.00023824,2]
[312609062,1706079044051,-4412.07694968,0.00023824,2]
[312609063,1706079044060,-157.37719437,0.0002386,2]
[312609064,1706079044070,-1036.12802063,0.0002386,2]
[312609065,1706079044080,-3208.82086977,0.00024897,2]
[312609082,1706079070499,293.34385947,0.00022,4]
[312609116,1706079752757,200.0,0.00025059,7]
[312609121,1706080026120,-199.30151643,0.00022766,2]
[312609122,1706080026147,-619.599095,0.00022767,2]
[312609123,1706080026168,-771.34571284,0.00022768,2]
[312609138,1706080232012,-154.87609912,0.00022761,2]
[312609139,1706080232022,-903.88612378,0.00022761,2]
[312609140,1706080232031,-302.00997705,0.00022762,2]
[312609141,1706080232040,-5210.1860001,0.00022784,2]
[312609142,1706080232049,-2003.13525957,0.00022785,2]
[312609143,1706080232058,-2183.91814678,0.00022797,2]
[312609144,1706080232067,-300.0,0.00023822,2]
[312609146,1706080232076,-499.27113848,0.0002386,2]
[312609148,1706080232085,-5000.0,0.0002386,2]
[312609150,1706080232093,-619.599095,0.00024395,2]
[312609152,1706080232102,-402.2363707,0.00024396,2]
[312609154,1706080232111,-288.0,0.000252,2]
[312609155,1706080232119,-4724.75315233,0.00025999,2]
[312609156,1706080232128,-1612.7140729,0.00026,4]
[312609157,1706080232137,-634.96818826,0.00026019,2]
[312609158,1706080232145,-172.67488,0.000274,2]
[312609159,1706080232154,-2746.390925,0.0002749,2]
[312609160,1706080232162,-2746.390925,0.0002749,2]
[312609161,1706080232171,-2746.390925,0.0002749,2]
[312609162,1706080232180,-2746.390925,0.0002749,2]
[312609163,1706080232189,-151.0,0.0002749,2]
[312609164,1706080232200,-151.671708,0.0002749,2]
[312609165,1706080232210,-286.105118,0.0002749,2]
[312609166,1706080232219,-2099.04804369,0.00027498,2]
[312609168,1706080232229,-2746.390925,0.00027498,2]
[312609170,1706080232239,-2746.390925,0.00027498,2]
[312609172,1706080232248,-209.44062145,0.00027499,2]
[312609174,1706080232258,-3208.0368372,0.000275,2]
[312609175,1706080232268,-448.38838384,0.000275,2]
[312609177,1706080232278,-343.09681091,0.000275,2]
[312609179,1706080232288,-154.97398562,0.000275,2]
[312609180,1706080232297,-50757.11511268,0.000275,7]
[312609182,1706080232306,-151.0,0.000275,2]
[312609184,1706080232315,-151.0,0.000275,2]
[312609186,1706080232324,-151.0,0.000275,2]
[312609187,1706080232333,-151.0,0.000275,2]
[312609189,1706080232342,-151.0,0.000275,2]
[312609191,1706080232351,-151.0,0.000275,2]
[312609192,1706080232361,-151.0,0.000275,2]
[312609193,1706080232370,-151.0,0.000275,2]
[312609194,1706080232379,-151.0,0.000275,2]
[312609195,1706080232388,-151.0,0.000275,2]
[312609196,1706080232397,-151.0,0.000275,2]
[312609197,1706080232406,-151.0,0.000275,2]
[312609198,1706080232415,-151.0,0.000275,2]
[312609199,1706080232425,-151.0,0.000275,2]
[312609200,1706080232434,-180.101588,0.000275,2]
[312609201,1706080232444,-2746.390925,0.000275,2]
[312609202,1706080232452,-2746.390925,0.000275,2]
[312609203,1706080232462,-2746.390925,0.000275,2]
[312609204,1706080232471,-2746.390925,0.000275,2]
[312609205,1706080232480,-2746.390925,0.000275,2]
[312609206,1706080232489,-2746.390925,0.000275,2]